[Event "49th Bosna Tournament 2019"]
[Site "Sarajevo/"]
[Date "2019.05.02"]
[Round "8.5"]
[White "Nestorovic, Nikola"]
[Black "Marn, Jan"]
[Result "1-0"]
[ECO "C45"]
[WhiteElo "2473"]
[BlackElo "2150"]
[Annotator "ChessBase"]
[PlyCount "55"]
[EventDate "2019.03.31"]
[EventType "swiss"]
[EventCountry "BIH"]
[SourceTitle "playchess.com"]
[Source "ChessBase"]
[SourceQuality "1"]
[TimeControl "40/5400+30:1800+30"]

1. e4 {[%emt 0:00:00]} e5 {[%emt 0:00:00]} 2. Nf3 {[%emt 0:00:00]} Nc6 {[%emt 0:00:00]} 3. d4 {[%emt 0:00:00]} exd4 {[%emt 0:00:00]} 4. Nxd4 {[%emt 0:00:00]} Nf6 {[%emt 0:00:07]} 5. Nxc6 {[%emt 0:00:00]} bxc6 {[%emt 0:00:06]} 6. e5 {[%emt 0:00:00]} Qe7 {[%emt 0:00:05]} 7. Qe2 {[%emt 0:00:03]} Nd5 {[%emt 0:00:06]} 8. h4 {[%emt 0:00:07]} a5 {[%emt 0:10:04]} 9. c4 {[%emt 0:01:45]} Nb6 {[%emt 0:00:59]} 10. g3 {[%emt 0:12:44]} Qb4+ {[%emt 0:21:30]} 11. Nd2 {[%emt 0:01:16]} Ba6 {[%emt 0:00:18]} 12. a3 {[%emt 0:11:16]} Qe7 {[%emt 0:05:59]} 13. b3 {[%emt 0:01:37]} O-O-O {[%emt 0:09:07]} 14. Bb2 {[%emt 0:00:12]} a4 {[%emt 0:01:49]} 15. b4 {[%emt 0:04:01]} c5 {[%emt 0:00:59]} 16. bxc5 {[%emt 0:19:39]} Qxc5 {[%emt 0:00:13]} 17. Rc1 {[%emt 0:00:01]} Bb7 {[%emt 0:01:56]} 18. Ne4 {[%emt 0:01:52]} Qa5+ {[%emt 0:00:50]} 19. Bc3 {[%emt 0:00:01]} Qa8 {[%emt 0:00:23]} 20. Bg2 {[%emt 0:00:04]} Bxa3 {[%emt 0:04:40]} 21. Ra1 {[%emt 0:00:03]} Be7 {[%emt 0:00:08]} 22. O-O {[%emt 0:00:12]} f5 {[%emt 0:14:05]} 23. Nd6+ {[%emt 0:08:20]} cxd6 {[%emt 0:00:48]} 24. Bxb7+ {[%emt 0:00:02]} Qxb7 {[%emt 0:00:15]} 25. Rfb1 {[%emt 0:00:03]} Qc6 {[%emt 0:03:48]} 26. c5 {[%emt 0:06:46]} Nd5 {[%emt 0:00:40]} 27. cxd6 {[%emt 0:00:46]} Nxc3 {[%emt 0:01:11]} 28. Qb2 {[%emt 0:00:05]} 1-0

[Event "49th Bosna Tournament 2019"]
[Site "Sarajevo/"]
[Date "2019.05.02"]
[Round "8.8"]
[White "Borsuk, Konstantin"]
[Black "Bistric, Faruk"]
[Result "1-0"]
[ECO "A40"]
[WhiteElo "2368"]
[BlackElo "2347"]
[Annotator "NA"]
[PlyCount "79"]
[EventDate "2019.03.31"]
[EventType "swiss"]
[EventCountry "BIH"]
[SourceTitle "playchess.com"]
[Source "ChessBase"]
[SourceQuality "1"]
[TimeControl "40/5400+30:1800+30"]

1. d4 e6 2. c4 c5 3. d5 exd5 4. cxd5 d6 5. Nc3 Ne7 6. h4 Nd7 7. e4 a6 8. h5 b5 9. g4 h6 10. Be2 g5 11. hxg6 Nxg6 12. Be3 Bg7 13. Nh3 Nb6 14. f4 b4 15. Na4 Nxa4 16. Qxa4+ Bd7 17. Qc2 Qh4+ 18. Kd2 Qf6 19. f5 Ne5 20. Nf4 Qd8 21. Nh5 Bf8 22. Rag1 Bb5 23. g5 Bxe2 24. Kxe2 Qe7 25. f6 Qd7 26. Ng7+ Kd8 27. gxh6 Rh7 28. Bf4 Qb5+ 29. Kf2 Nd3+ 30. Kf3 c4 31. Nf5 Kd7 32. Qh2 Re8 33. Bxd6 Rxh6 34. Nxh6 Bxd6 35. Qh3+ Kc7 36. Nxf7 Rxe4 37. Qc8+ Kb6 38. Kxe4 Nf2+ 39. Kd4 c3 40. Qb7+ 1-0

[Event "49th Bosna Tournament 2019"]
[Site "Sarajevo/"]
[Date "2019.05.02"]
[Round "8.9"]
[White "Trkulja, Goran"]
[Black "Ozen, Deniz"]
[Result "0-1"]
[ECO "B04"]
[WhiteElo "2309"]
[BlackElo "2403"]
[Annotator "ChessBase"]
[PlyCount "102"]
[EventDate "2019.03.31"]
[EventType "swiss"]
[EventCountry "BIH"]
[SourceTitle "playchess.com"]
[Source "ChessBase"]
[SourceQuality "1"]
[TimeControl "40/5400+30:1800+30"]

1. e4 Nf6 2. e5 Nd5 3. d4 d6 4. Nf3 g6 5. h4 Bg4 6. Be2 Nc6 7. e6 fxe6 8. Ng5 Bxe2 9. Qxe2 Nxd4 10. Qe4 c5 11. Nxh7 Rxh7 12. Qxg6+ Rf7 13. h5 Nc6 14. f4 Bg7 15. h6 Bh8 16. c4 Nf6 17. g4 Nxg4 18. Qxg4 Kd7 19. h7 Bd4 20. Rh6 Rg7 21. Qxe6+ Kc7 22. Nd2 Qh8 23. Qe4 Rg1+ 24. Nf1 Rf8 25. Be3 Bxe3 26. Qxe3 Rg7 27. O-O-O Rxh7 28. Re6 Rhf7 29. Re4 Kb8 30. Ng3 Qg7 31. Re1 a6 32. a3 Ka8 33. Kb1 e5 34. Ne2 Qg2 35. Rg1 Qh2 36. Rf1 Nd4 37. Nc3 Rxf4 38. Rc1 Qh7 39. Ka2 Rf3 40. Qe1 R3f4 41. Rxf4 exf4 42. Nd5 f3 43. Qa5 Kb8 44. Qb6 Nc6 45. Qb3 f2 46. Rf1 Qe4 47. Nb6 Nd4 48. Qg3 Qf4 49. Qg7 Ka7 50. Nd5 Qf3 51. Nc3 Qd3 0-1

[Event "49th Bosna Tournament 2019"]
[Site "Sarajevo/"]
[Date "2019.05.03"]
[Round "9.4"]
[White "Klasan, Vladimir"]
[Black "Borsuk, Konstantin"]
[Result "1/2-1/2"]
[ECO "A46"]
[WhiteElo "2366"]
[BlackElo "2368"]
[Annotator "NA"]
[PlyCount "21"]
[EventDate "2019.03.31"]
[EventType "swiss"]
[EventCountry "BIH"]
[SourceTitle "playchess.com"]
[Source "ChessBase"]
[SourceQuality "1"]
[TimeControl "40/5400+30:1800+30"]

1. d4 {[%emt 0:00:00]} Nf6 {[%emt 0:00:00]} 2. Nf3 {[%emt 0:00:00]} e6 {[%emt 0:00:00]} 3. Bf4 {[%emt 0:00:05]} b6 {[%emt 0:00:04]} 4. e3 {[%emt 0:00:23]} Bb7 {[%emt 0:00:18]} 5. Bd3 {[%emt 0:00:22]} d6 {[%emt 0:00:16]} 6. O-O {[%emt 0:00:23]} Nh5 {[%emt 0:00:34]} 7. Bg5 {[%emt 0:00:39]} Be7 {[%emt 0:00:14]} 8. Bxe7 {[%emt 0:00:09]} Qxe7 {[%emt 0:00:09]} 9. Nbd2 {[%emt 0:00:19]} Nd7 {[%emt 0:00:17]} 10. Re1 {[%emt 0:00:30]} g6 {[%emt 0:00:31]} 11. e4 1/2-1/2

[Event "49th Bosna Tournament 2019"]
[Site "Sarajevo/"]
[Date "2019.05.03"]
[Round "9.8"]
[White "Sutkovic, Damir"]
[Black "Dizdarevic, Emir"]
[Result "0-1"]
[ECO "A10"]
[WhiteElo "2350"]
[BlackElo "2423"]
[Annotator "RC"]
[PlyCount "70"]
[EventDate "2019.03.31"]
[EventType "swiss"]
[EventCountry "BIH"]
[SourceTitle "playchess.com"]
[Source "ChessBase"]
[SourceQuality "1"]
[TimeControl "40/5400+30:1800+30"]

1. c4 b6 2. Nf3 Bb7 3. e3 c5 4. Nc3 Nf6 5. d4 cxd4 6. exd4 e6 7. Be2 d5 8. O-O Be7 9. h3 O-O 10. Be3 Nc6 11. Rc1 dxc4 12. Bxc4 Rc8 13. Qe2 Nb4 14. Ne5 Nbd5 15. Rfd1 Nxc3 16. Rxc3 Ne4 17. Rcc1 Nd6 18. Bd3 Bd5 19. a3 a5 20. Qh5 Ne4 21. Rxc8 Qxc8 22. Rc1 Qb7 23. Qe2 Nf6 24. Qf1 Rc8 25. Rxc8+ Qxc8 26. Qc1 Qb7 27. Bf1 b5 28. Nd3 b4 29. axb4 axb4 30. Nc5 Qb8 31. Bc4 h6 32. Bxd5 Nxd5 33. Bd2 Qb5 34. b3 e5 35. Be3 Nc3 0-1